[Event "ONJK-FGH 2019"]
[Site "Borne"]
[Date "2019.08.06"]
[Round "4.1"]
[White "Breider, Jayden"]
[Black "Vijver, Jonathan"]
[Result "0-1"]
[ECO "C56"]
[WhiteElo "347"]
[BlackElo "999"]
[Annotator "NA"]
[PlyCount "114"]
[EventDate "2019.08.05"]
[EventType "swiss"]
[EventCountry "NED"]
[SourceTitle "playchess.com"]
[Source "ChessBase"]
[SourceQuality "1"]
[TimeControl "1500+10"]

1. e4 {[%emt 0:00:02]} e5 {[%emt 0:00:03]} 2. Nf3 {[%emt 0:00:05]} Nc6 {[%emt 0:00:02]} 3. d4 {[%emt 0:00:06]} exd4 {[%emt 0:00:03]} 4. Bc4 {[%emt 0:00:01]} Nf6 {[%emt 0:00:10]} 5. O-O {[%emt 0:00:05]} d6 {[%emt 0:00:38]} 6. Ng5 {[%emt 0:00:11]} Ne5 {[%emt 0:00:42]} 7. Bb3 {[%emt 0:00:37]} h6 {[%emt 0:00:26]} 8. Nf3 {[%emt 0:00:45]} Bg4 {[%emt 0:00:44]} 9. Bf4 {[%emt 0:00:24]} Nxf3+ {[%emt 0:00:07]} 10. gxf3 {[%emt 0:00:08]} Bh3 {[%emt 0:00:38]} 11. Re1 {[%emt 0:00:06]} Be7 {[%emt 0:00:32]} 12. Qxd4 {[%emt 0:00:09]} Nh5 {[%emt 0:00:38]} 13. e5 {[%emt 0:00:24]} Nxf4 {[%emt 0:01:23]} 14. Qxf4 {[%emt 0:00:03]} d5 {[%emt 0:00:37]} 15. Rd1 {[%emt 0:01:15]} c6 {[%emt 0:00:51]} 16. c4 {[%emt 0:00:43]} Be6 {[%emt 0:00:34]} 17. cxd5 {[%emt 0:00:17]} Bxd5 {[%emt 0:00:11]} 18. Bxd5 {[%emt 0:00:05]} cxd5 {[%emt 0:00:07]} 19. Nc3 {[%emt 0:00:04]} Bg5 {[%emt 0:00:48]} 20. Qd4 {[%emt 0:00:02]} O-O {[%emt 0:00:47]} 21. Qxd5 {[%emt 0:00:07]} Qxd5 {[%emt 0:00:29]} 22. Rxd5 {[%emt 0:00:11]} Rad8 {[%emt 0:00:18]} 23. Rad1 {[%emt 0:00:00]} Rxd5 {[%emt 0:00:22]} 24. Nxd5 {[%emt 0:00:00]} Rd8 {[%emt 0:00:28]} 25. Kg2 {[%emt 0:00:54]} Kf8 {[%emt 0:00:32]} 26. Kg3 {[%emt 0:00:10]} f5 {[%emt 0:00:40]} 27. exf6 {[%emt 0:00:09]} Bxf6 {[%emt 0:00:09]} 28. Kf4 {[%emt 0:00:19]} Bxb2 {[%emt 0:00:29]} 29. Rb1 {[%emt 0:00:11]} g5+ {[%emt 0:00:15]} 30. Kg4 {[%emt 0:00:09]} Rxd5 {[%emt 0:00:47]} 31. Rxb2 {[%emt 0:00:01]} b6 {[%emt 0:00:15]} 32. Re2 {[%emt 0:00:29]} Rd7 {[%emt 0:00:15]} 33. Re4 {[%emt 0:00:06]} Kg7 {[%emt 0:00:14]} 34. f4 {[%emt 0:00:02]} gxf4 {[%emt 0:00:24]} 35. Rxf4 {[%emt 0:00:02]} Rd2 {[%emt 0:00:13]} 36. Rc4 {[%emt 0:00:11]} Rxa2 {[%emt 0:00:17]} 37. Rc7+ {[%emt 0:00:03]} Kf8 {[%emt 0:00:08]} 38. Kh5 {[%emt 0:00:04]} Rxf2 {[%emt 0:00:14]} 39. Kxh6 {[%emt 0:00:05]} Rxh2+ {[%emt 0:00:08]} 40. Kg6 {[%emt 0:00:02]} Rg2+ {[%emt 0:00:16]} 41. Kf6 {[%emt 0:00:02]} Rf2+ {[%emt 0:00:21]} 42. Ke6 {[%emt 0:00:03]} Ra2 {[%emt 0:00:57]} 43. Kf6 {[%emt 0:00:04]} Ke8 {[%emt 0:00:11]} 44. Ke6 {[%emt 0:00:03]} Kd8 {[%emt 0:00:08]} 45. Rh7 {[%emt 0:00:02]} a5 {[%emt 0:00:22]} 46. Kd6 {[%emt 0:00:02]} Rd2+ {[%emt 0:00:12]} 47. Kc6 {[%emt 0:00:03]} Rb2 {[%emt 0:00:39]} 48. Kd6 {[%emt 0:00:06]} Ke8 {[%emt 0:00:11]} 49. Ke6 {[%emt 0:00:01]} Kf8 {[%emt 0:00:10]} 50. Kf6 {[%emt 0:00:03]} Kg8 {[%emt 0:00:06]} 51. Ra7 {[%emt 0:00:02]} Rc2 {[%emt 0:00:33]} 52. Kg6 {[%emt 0:00:03]} Rc6+ {[%emt 0:00:08]} 53. Kf5 {[%emt 0:00:03]} Rc1 {[%emt 0:02:54]} 54. Ra8+ {[%emt 0:00:03]} Kh7 {[%emt 0:00:22]} 55. Kg5 {[%emt 0:00:06]} Rg1+ {[%emt 0:00:05]} 56. Kf5 {[%emt 0:00:01]} Rg8 {[%emt 0:00:06]} 57. Ra7+ {[%emt 0:00:07]} Rg7 {[%emt 0:00:02]} 0-1

[Event "ONJK-FGH 2019"]
[Site "Borne"]
[Date "2019.08.06"]
[Round "4.2"]
[White "Kurt, Sascha"]
[Black "Jansen, Lein"]
[Result "1-0"]
[ECO "B00"]
[WhiteElo "984"]
[BlackElo "390"]
[Annotator "NA"]
[PlyCount "49"]
[EventDate "2019.08.05"]
[EventType "swiss"]
[EventCountry "NED"]
[SourceTitle "playchess.com"]
[Source "ChessBase"]
[SourceQuality "1"]
[TimeControl "1500+10"]

1. e4 {[%emt 0:00:00]} e5 {[%emt 0:00:00]} 2. d4 {[%emt 0:00:00]} Nc6 {[%emt 0:00:14]} 3. d5 {[%emt 0:00:04]} Na5 {[%emt 0:00:32]} 4. Nf3 {[%emt 0:00:44]} d6 {[%emt 0:00:15]} 5. c4 {[%emt 0:00:30]} Nf6 {[%emt 0:00:17]} 6. Qa4+ {[%emt 0:00:24]} Bd7 {[%emt 0:00:41]} 7. Qxa5 {[%emt 0:00:14]} Nxe4 {[%emt 0:00:43]} 8. Nbd2 {[%emt 0:00:44]} b6 {[%emt 0:00:31]} 9. Qa3 {[%emt 0:00:20]} Nc5 {[%emt 0:00:42]} 10. b4 {[%emt 0:00:34]} Nb7 {[%emt 0:00:42]} 11. Be2 {[%emt 0:00:30]} Be7 {[%emt 0:00:35]} 12. O-O {[%emt 0:00:15]} O-O {[%emt 0:00:14]} 13. Ne4 {[%emt 0:00:43]} Bf5 {[%emt 0:01:02]} 14. Qe3 {[%emt 0:00:58]} c5 {[%emt 0:00:17]} 15. dxc6 {[%emt 0:00:19]} Bf6 {[%emt 0:00:46]} 16. cxb7 {[%emt 0:00:21]} Rb8 {[%emt 0:00:02]} 17. Nxf6+ {[%emt 0:00:26]} Qxf6 {[%emt 0:00:22]} 18. Qg5 {[%emt 0:00:07]} Qg6 {[%emt 0:00:14]} 19. Qxg6 {[%emt 0:00:02]} Bxg6 {[%emt 0:00:03]} 20. Rd1 {[%emt 0:00:18]} Rxb7 {[%emt 0:00:06]} 21. Rxd6 {[%emt 0:00:14]} a5 {[%emt 0:00:12]} 22. Nxe5 {[%emt 0:00:21]} Re8 {[%emt 0:00:15]} 23. Nxg6 {[%emt 0:00:06]} Rxe2 {[%emt 0:00:19]} 24. Rd8+ {[%emt 0:00:03]} Re8 {[%emt 0:00:11]} 25. Rxe8# {[%emt 0:00:10]} 1-0

[Event "ONJK-FGH 2019"]
[Site "Borne"]
[Date "2019.08.06"]
[Round "4.3"]
[White "Gang, Kevin"]
[Black "Geldof, Max"]
[Result "0-1"]
[ECO "E24"]
[WhiteElo "827"]
[BlackElo "749"]
[Annotator "NA"]
[PlyCount "54"]
[EventDate "2019.08.05"]
[EventType "swiss"]
[EventCountry "NED"]
[SourceTitle "playchess.com"]
[Source "ChessBase"]
[SourceQuality "1"]
[TimeControl "1500+10"]

1. d4 {[%emt 0:00:00]} d5 {[%emt 0:00:00]} 2. c4 {[%emt 0:00:00]} e6 {[%emt 0:00:15]} 3. Nc3 {[%emt 0:00:00]} Nf6 {[%emt 0:00:15]} 4. Bg5 {[%emt 0:00:21]} Bb4 {[%emt 0:00:19]} 5. a3 {[%emt 0:00:14]} Bxc3+ {[%emt 0:00:16]} 6. bxc3 {[%emt 0:00:07]} Nc6 {[%emt 0:00:44]} 7. Nf3 {[%emt 0:00:13]} h6 {[%emt 0:00:21]} 8. Bh4 {[%emt 0:00:06]} O-O {[%emt 0:00:17]} 9. Ne5 {[%emt 0:00:24]} Qd6 {[%emt 0:00:26]} 10. c5 {[%emt 0:00:17]} Qe7 {[%emt 0:00:21]} 11. e3 {[%emt 0:00:07]} b6 {[%emt 0:00:33]} 12. Bb5 {[%emt 0:00:32]} Nd8 {[%emt 0:00:38]} 13. Bxf6 {[%emt 0:00:06]} Qxf6 {[%emt 0:00:08]} 14. Bd7 {[%emt 0:00:19]} Qe7 {[%emt 0:00:43]} 15. Bxc8 {[%emt 0:00:37]} Rxc8 {[%emt 0:00:03]} 16. Qg4 {[%emt 0:00:15]} bxc5 {[%emt 0:00:25]} 17. dxc5 {[%emt 0:00:05]} Qxc5 {[%emt 0:00:03]} 18. Nd7 {[%emt 0:00:02]} Qxc3+ {[%emt 0:00:03]} 19. Ke2 {[%emt 0:00:07]} f5 {[%emt 0:00:52]} 20. Qg6 {[%emt 0:00:13]} Qc4+ {[%emt 0:00:26]} 21. Kf3 {[%emt 0:00:25]} Qe4+ {[%emt 0:00:02]} 22. Kg3 {[%emt 0:00:02]} f4+ {[%emt 0:00:15]} 23. exf4 {[%emt 0:00:29]} Qxg6+ {[%emt 0:00:02]} 24. Kf3 {[%emt 0:00:05]} Qe4+ {[%emt 0:00:21]} 25. Kg4 {[%emt 0:00:34]} Rxf4+ {[%emt 0:00:00]} 26. Kh3 {[%emt 0:00:09]} Rh4+ {[%emt 0:00:00]} 27. Kg3 {[%emt 0:00:06]} Qf4# {[%emt 0:00:13]} 0-1

[Event "ONJK-FGH 2019"]
[Site "Borne"]
[Date "2019.08.06"]
[Round "4.4"]
[White "Smeets, Bent"]
[Black "Terlouw, Wouter"]
[Result "0-1"]
[ECO "D02"]
[WhiteElo "463"]
[BlackElo "1159"]
[Annotator "NA"]
[PlyCount "78"]
[EventDate "2019.08.05"]
[EventType "swiss"]
[EventCountry "NED"]
[SourceTitle "playchess.com"]
[Source "ChessBase"]
[SourceQuality "1"]
[TimeControl "1500+10"]

1. d4 {[%emt 0:00:00]} d5 {[%emt 0:00:00]} 2. c4 {[%emt 0:00:00]} c6 {[%emt 0:00:00]} 3. Nc3 {[%emt 0:00:03]} Nf6 {[%emt 0:00:00]} 4. Nf3 {[%emt 0:00:19]} Bf5 {[%emt 0:00:04]} 5. Bf4 {[%emt 0:00:09]} e6 {[%emt 0:00:04]} 6. e3 {[%emt 0:00:17]} Bd6 {[%emt 0:00:07]} 7. c5 {[%emt 0:00:23]} Bxf4 {[%emt 0:00:11]} 8. exf4 {[%emt 0:00:04]} Nbd7 {[%emt 0:00:08]} 9. Bd3 {[%emt 0:00:13]} Bg6 {[%emt 0:00:18]} 10. O-O {[%emt 0:00:04]} O-O {[%emt 0:00:03]} 11. Bxg6 {[%emt 0:00:36]} fxg6 {[%emt 0:00:06]} 12. Ng5 {[%emt 0:00:12]} Re8 {[%emt 0:00:18]} 13. Re1 {[%emt 0:00:53]} Nf8 {[%emt 0:00:26]} 14. Ne2 {[%emt 0:00:53]} h6 {[%emt 0:00:08]} 15. Nf3 {[%emt 0:00:06]} Ne4 {[%emt 0:00:08]} 16. Nc3 {[%emt 0:00:34]} Nxc3 {[%emt 0:00:09]} 17. bxc3 {[%emt 0:00:02]} Qa5 {[%emt 0:00:02]} 18. Qd3 {[%emt 0:00:35]} Qc7 {[%emt 0:00:23]} 19. Ne5 {[%emt 0:00:38]} Kh7 {[%emt 0:00:48]} 20. h3 {[%emt 0:01:02]} Qe7 {[%emt 0:00:19]} 21. f5 {[%emt 0:00:59]} gxf5 {[%emt 0:00:23]} 22. g4 {[%emt 0:00:31]} g6 {[%emt 0:00:33]} 23. gxf5 {[%emt 0:00:15]} gxf5 {[%emt 0:00:02]} 24. Kf1 {[%emt 0:00:47]} Nd7 {[%emt 0:00:10]} 25. Nxd7 {[%emt 0:00:07]} Qxd7 {[%emt 0:00:02]} 26. Ke2 {[%emt 0:01:13]} Rg8 {[%emt 0:00:58]} 27. Qf3 {[%emt 0:00:53]} Rae8 {[%emt 0:00:38]} 28. Rad1 {[%emt 0:00:31]} e5 {[%emt 0:00:13]} 29. Kd2 {[%emt 0:00:08]} e4 {[%emt 0:00:03]} 30. Qf4 {[%emt 0:00:38]} Rg5 {[%emt 0:00:49]} 31. h4 {[%emt 0:00:17]} Rg4 {[%emt 0:00:08]} 32. Qh2 {[%emt 0:00:19]} Reg8 {[%emt 0:00:06]} 33. Rg1 {[%emt 0:00:18]} Qe7 {[%emt 0:01:02]} 34. Rxg4 {[%emt 0:00:08]} Rxg4 {[%emt 0:00:02]} 35. Qb8 {[%emt 0:00:17]} Qxh4 {[%emt 0:00:20]} 36. Qxb7+ {[%emt 0:00:07]} Rg7 {[%emt 0:00:17]} 37. Qxc6 {[%emt 0:00:04]} Qxf2+ {[%emt 0:00:02]} 38. Kc1 {[%emt 0:00:12]} Rg2 {[%emt 0:00:21]} 39. Qa4 {[%emt 0:00:35]} Qb2# {[%emt 0:00:02]} 0-1

[Event "ONJK-FGH 2019"]
[Site "Borne"]
[Date "2019.08.06"]
[Round "4.5"]
[White "Leenen, Boyd"]
[Black "Thijssen, Freek"]
[Result "1-0"]
[ECO "C50"]
[WhiteElo "618"]
[BlackElo "702"]
[Annotator "NA"]
[PlyCount "132"]
[EventDate "2019.08.05"]
[EventType "swiss"]
[EventCountry "NED"]
[SourceTitle "playchess.com"]
[Source "ChessBase"]
[SourceQuality "1"]
[TimeControl "1500+10"]

1. e4 {[%emt 0:00:00]} e5 {[%emt 0:00:00]} 2. Nf3 {[%emt 0:00:00]} Nc6 {[%emt 0:00:00]} 3. Nc3 {[%emt 0:00:00]} Nf6 {[%emt 0:00:00]} 4. Bc4 {[%emt 0:00:00]} Bc5 {[%emt 0:00:00]} 5. d3 {[%emt 0:00:00]} h6 {[%emt 0:00:00]} 6. Be3 {[%emt 0:00:00]} Bb4 {[%emt 0:00:05]} 7. Qd2 {[%emt 0:00:00]} O-O {[%emt 0:00:11]} 8. O-O {[%emt 0:00:00]} d6 {[%emt 0:00:05]} 9. Rfe1 {[%emt 0:00:03]} d5 {[%emt 0:00:21]} 10. exd5 {[%emt 0:00:08]} Nd4 {[%emt 0:00:19]} 11. Nxe5 {[%emt 0:00:10]} Nf5 {[%emt 0:00:26]} 12. Nf3 {[%emt 0:00:05]} Re8 {[%emt 0:00:07]} 13. a3 {[%emt 0:00:03]} Ba5 {[%emt 0:00:07]} 14. b4 {[%emt 0:00:01]} Bb6 {[%emt 0:00:01]} 15. Bxb6 {[%emt 0:00:13]} axb6 {[%emt 0:00:03]} 16. Rxe8+ {[%emt 0:00:02]} Qxe8 {[%emt 0:00:02]} 17. Re1 {[%emt 0:00:01]} Qd8 {[%emt 0:00:16]} 18. Qf4 {[%emt 0:00:04]} Rxa3 {[%emt 0:00:13]} 19. Qd2 {[%emt 0:00:03]} Qd6 {[%emt 0:00:31]} 20. Rb1 {[%emt 0:00:06]} Ng4 {[%emt 0:00:16]} 21. Nb5 {[%emt 0:00:02]} Qe7 {[%emt 0:00:21]} 22. Nxa3 {[%emt 0:00:05]} c6 {[%emt 0:00:24]} 23. Qf4 {[%emt 0:00:03]} Nf6 {[%emt 0:00:43]} 24. Ra1 {[%emt 0:00:18]} Nxd5 {[%emt 0:00:16]} 25. Bxd5 {[%emt 0:00:02]} cxd5 {[%emt 0:00:01]} 26. Qe5 {[%emt 0:00:07]} Qd8 {[%emt 0:00:35]} 27. Re1 {[%emt 0:00:07]} Bd7 {[%emt 0:00:07]} 28. Qxd5 {[%emt 0:00:13]} Ne7 {[%emt 0:00:23]} 29. Qd6 {[%emt 0:00:11]} Nf5 {[%emt 0:00:05]} 30. Qd5 {[%emt 0:00:04]} Ne7 {[%emt 0:00:01]} 31. Qd4 {[%emt 0:00:02]} Nf5 {[%emt 0:00:02]} 32. Qe4 {[%emt 0:00:14]} Qa8 {[%emt 0:00:12]} 33. Ra1 {[%emt 0:00:13]} b5 {[%emt 0:00:33]} 34. Qd5 {[%emt 0:00:09]} Be6 {[%emt 0:00:34]} 35. Qxb5 {[%emt 0:00:08]} Kh8 {[%emt 0:00:44]} 36. Qe5 {[%emt 0:00:06]} Kg8 {[%emt 0:00:07]} 37. Nb5 {[%emt 0:00:06]} Qe8 {[%emt 0:00:17]} 38. Nc7 {[%emt 0:00:05]} Qe7 {[%emt 0:00:21]} 39. Nxe6 {[%emt 0:00:07]} fxe6 {[%emt 0:00:07]} 40. g4 {[%emt 0:00:04]} Nd6 {[%emt 0:00:14]} 41. Nd4 {[%emt 0:00:11]} Kf7 {[%emt 0:00:22]} 42. Re1 {[%emt 0:00:16]} Kf8 {[%emt 0:00:23]} 43. Qxe6 {[%emt 0:00:05]} Qxe6 {[%emt 0:00:03]} 44. Rxe6 {[%emt 0:00:02]} Nf7 {[%emt 0:00:04]} 45. Rb6 {[%emt 0:00:07]} Nd8 {[%emt 0:00:02]} 46. Ne6+ {[%emt 0:00:02]} Nxe6 {[%emt 0:00:11]} 47. Rxe6 {[%emt 0:00:03]} Kf7 {[%emt 0:00:02]} 48. Rb6 {[%emt 0:00:02]} Ke7 {[%emt 0:00:02]} 49. Rxb7+ {[%emt 0:00:17]} Kd6 {[%emt 0:00:10]} 50. Rxg7 {[%emt 0:00:03]} Ke5 {[%emt 0:00:01]} 51. Rh7 {[%emt 0:00:01]} Kf4 {[%emt 0:00:02]} 52. Rxh6 {[%emt 0:00:02]} Kxg4 {[%emt 0:00:01]} 53. b5 {[%emt 0:00:01]} Kg5 {[%emt 0:00:02]} 54. b6 {[%emt 0:00:01]} Kxh6 {[%emt 0:00:02]} 55. b7 {[%emt 0:00:01]} Kg5 {[%emt 0:00:01]} 56. b8=Q {[%emt 0:00:05]} Kg6 {[%emt 0:00:00]} 57. Kg2 {[%emt 0:00:00]} Kf5 {[%emt 0:00:00]} 58. Qb4 {[%emt 0:00:00]} Ke5 {[%emt 0:00:00]} 59. Qc4 {[%emt 0:00:00]} Kf5 {[%emt 0:00:00]} 60. Qd4 {[%emt 0:00:00]} Kg5 {[%emt 0:00:00]} 61. Qe4 {[%emt 0:00:00]} Kf6 {[%emt 0:00:00]} 62. Qd5 {[%emt 0:00:00]} Kg6 {[%emt 0:00:00]} 63. Qe5 {[%emt 0:00:01]} Kf7 {[%emt 0:00:00]} 64. Qd6 {[%emt 0:00:01]} Kg7 {[%emt 0:00:00]} 65. Qe6 {[%emt 0:00:01]} Kh7 {[%emt 0:00:02]} 66. Qf6 {[%emt 0:00:02]} Kg8 {[%emt 0:00:02]} 1-0

[Event "ONJK-FGH 2019"]
[Site "Borne"]
[Date "2019.08.06"]
[Round "4.6"]
[White "Van Es, Bjarne"]
[Black "Zhang, Yourui Eric"]
[Result "0-1"]
[ECO "C48"]
[WhiteElo "100"]
[BlackElo "447"]
[Annotator "NA"]
[PlyCount "54"]
[EventDate "2019.08.05"]
[EventType "swiss"]
[EventCountry "NED"]
[SourceTitle "playchess.com"]
[Source "ChessBase"]
[SourceQuality "1"]
[TimeControl "1500+10"]

1. e4 {[%emt 0:00:00]} e5 {[%emt 0:00:00]} 2. Nf3 {[%emt 0:00:00]} Nc6 {[%emt 0:00:00]} 3. Nc3 {[%emt 0:00:00]} Nf6 {[%emt 0:00:07]} 4. Bb5 {[%emt 0:00:04]} Bc5 {[%emt 0:00:05]} 5. Bxc6 {[%emt 0:00:04]} bxc6 {[%emt 0:00:06]} 6. Nxe5 {[%emt 0:00:04]} Qe7 {[%emt 0:00:16]} 7. f4 {[%emt 0:00:14]} d6 {[%emt 0:00:06]} 8. Nf3 {[%emt 0:00:14]} Ng4 {[%emt 0:00:22]} 9. d4 {[%emt 0:00:09]} Bb6 {[%emt 0:00:00]} 10. O-O {[%emt 0:00:07]} c5 {[%emt 0:00:00]} 11. dxc5 {[%emt 0:00:03]} Bxc5+ {[%emt 0:00:00]} 12. Kh1 {[%emt 0:00:23]} Ba6 {[%emt 0:00:00]} 13. Re1 {[%emt 0:00:04]} Nf2+ {[%emt 0:00:22]} 14. Kg1 {[%emt 0:00:08]} Nd3+ {[%emt 0:00:05]} 15. Kf1 {[%emt 0:00:05]} Nxc1+ {[%emt 0:00:07]} 16. Ne2 {[%emt 0:00:17]} Nxe2 {[%emt 0:00:04]} 17. Rxe2 {[%emt 0:00:07]} Bxe2+ {[%emt 0:00:05]} 18. Qxe2 {[%emt 0:00:05]} Rb8 {[%emt 0:00:05]} 19. Rb1 {[%emt 0:00:10]} Ba3 {[%emt 0:00:07]} 20. Qa6 {[%emt 0:00:18]} Qxe4 {[%emt 0:00:15]} 21. Qxa3 {[%emt 0:00:07]} O-O {[%emt 0:00:09]} 22. Re1 {[%emt 0:00:11]} Qxc2 {[%emt 0:00:25]} 23. b4 {[%emt 0:00:19]} Qc4+ {[%emt 0:00:13]} 24. Re2 {[%emt 0:00:14]} Rfe8 {[%emt 0:00:29]} 25. Nd2 {[%emt 0:00:09]} Qxe2+ {[%emt 0:00:00]} 26. Kg1 {[%emt 0:00:06]} Qxd2 {[%emt 0:00:00]} 27. Qxa7 {[%emt 0:00:07]} Re1# {[%emt 0:00:00]} 0-1

[Event "ONJK-FGH 2019"]
[Site "Borne"]
[Date "2019.08.06"]
[Round "5.1"]
[White "Vijver, Jonathan"]
[Black "Kurt, Sascha"]
[Result "1/2-1/2"]
[ECO "C56"]
[WhiteElo "999"]
[BlackElo "984"]
[Annotator "NA"]
[PlyCount "77"]
[EventDate "2019.08.05"]
[EventType "swiss"]
[EventCountry "NED"]
[SourceTitle "playchess.com"]
[Source "ChessBase"]
[SourceQuality "1"]
[TimeControl "1500+10"]

1. e4 {[%emt 0:00:00]} e5 {[%emt 0:00:00]} 2. Nf3 {[%emt 0:00:00]} Nc6 {[%emt 0:00:01]} 3. d4 {[%emt 0:00:00]} exd4 {[%emt 0:00:05]} 4. Bc4 {[%emt 0:00:04]} Nf6 {[%emt 0:00:09]} 5. e5 {[%emt 0:00:04]} d5 {[%emt 0:00:12]} 6. Bb5 {[%emt 0:00:07]} Ne4 {[%emt 0:00:50]} 7. Nxd4 {[%emt 0:00:20]} Bd7 {[%emt 0:01:30]} 8. Bxc6 {[%emt 0:00:46]} Bxc6 {[%emt 0:00:57]} 9. Nxc6 {[%emt 0:00:28]} bxc6 {[%emt 0:01:00]} 10. O-O {[%emt 0:01:37]} h5 {[%emt 0:01:23]} 11. Nd2 {[%emt 0:01:08]} Qe7 {[%emt 0:01:31]} 12. Nxe4 {[%emt 0:00:33]} dxe4 {[%emt 0:00:07]} 13. f4 {[%emt 0:00:16]} h4 {[%emt 0:00:55]} 14. Re1 {[%emt 0:01:12]} Rd8 {[%emt 0:00:40]} 15. Qe2 {[%emt 0:01:11]} Qd7 {[%emt 0:03:04]} 16. Qxe4 {[%emt 0:01:03]} Bc5+ {[%emt 0:00:57]} 17. Be3 {[%emt 0:00:31]} Bxe3+ {[%emt 0:00:23]} 18. Qxe3 {[%emt 0:00:27]} Qd2 {[%emt 0:00:36]} 19. Qe4 {[%emt 0:01:07]} Rd5 {[%emt 0:01:27]} 20. e6 {[%emt 0:02:23]} Qd4+ {[%emt 0:01:23]} 21. Qxd4 {[%emt 0:00:15]} Rxd4 {[%emt 0:00:08]} 22. exf7+ {[%emt 0:00:23]} Kxf7 {[%emt 0:00:16]} 23. Rad1 {[%emt 0:00:18]} Rhd8 {[%emt 0:00:18]} 24. Rxd4 {[%emt 0:00:36]} Rxd4 {[%emt 0:00:07]} 25. Re2 {[%emt 0:00:08]} Rxf4 {[%emt 0:00:22]} 26. Rf2 {[%emt 0:00:03]} Rxf2 {[%emt 0:00:12]} 27. Kxf2 {[%emt 0:00:04]} Kf6 {[%emt 0:00:09]} 28. Kf3 {[%emt 0:00:05]} Kf5 {[%emt 0:00:09]} 29. g4+ {[%emt 0:00:15]} hxg3 {[%emt 0:00:16]} 30. hxg3 {[%emt 0:00:10]} c5 {[%emt 0:00:28]} 31. g4+ {[%emt 0:00:04]} Ke5 {[%emt 0:00:06]} 32. b3 {[%emt 0:00:22]} g5 {[%emt 0:00:11]} 33. c3 {[%emt 0:00:16]} c6 {[%emt 0:00:11]} 34. Ke3 {[%emt 0:00:14]} a6 {[%emt 0:00:11]} 35. c4 {[%emt 0:00:09]} a5 {[%emt 0:00:10]} 36. a4 {[%emt 0:00:04]} Kf6 {[%emt 0:00:21]} 37. Ke4 {[%emt 0:00:05]} Ke6 {[%emt 0:00:10]} 38. Kd3 {[%emt 0:00:27]} Ke5 {[%emt 0:00:10]} 39. Ke3 {[%emt 0:00:05]} 1/2-1/2

[Event "ONJK-FGH 2019"]
[Site "Borne"]
[Date "2019.08.06"]
[Round "5.2"]
[White "Dijkhuijsen, Thomas"]
[Black "Allaart, Jibbe"]
[Result "0-1"]
[ECO "C50"]
[WhiteElo "595"]
[BlackElo "466"]
[Annotator "NA"]
[PlyCount "158"]
[EventDate "2019.08.05"]
[EventType "swiss"]
[EventCountry "NED"]
[SourceTitle "playchess.com"]
[Source "ChessBase"]
[SourceQuality "1"]
[TimeControl "1500+10"]

1. e4 {[%emt 0:00:00]} e5 {[%emt 0:00:00]} 2. Bc4 {[%emt 0:00:00]} Nc6 {[%emt 0:00:00]} 3. Nf3 {[%emt 0:00:00]} Bc5 {[%emt 0:00:07]} 4. Nc3 {[%emt 0:00:00]} Nf6 {[%emt 0:00:05]} 5. O-O {[%emt 0:00:04]} O-O {[%emt 0:00:03]} 6. d3 {[%emt 0:00:03]} d6 {[%emt 0:00:03]} 7. Bg5 {[%emt 0:00:09]} Bg4 {[%emt 0:00:02]} 8. Bxf6 {[%emt 0:00:10]} Qxf6 {[%emt 0:00:02]} 9. Nd5 {[%emt 0:00:33]} Qd8 {[%emt 0:00:10]} 10. h3 {[%emt 0:00:14]} Bh5 {[%emt 0:00:02]} 11. g4 {[%emt 0:00:15]} Bg6 {[%emt 0:00:03]} 12. Ne3 {[%emt 0:00:18]} Nd4 {[%emt 0:00:09]} 13. Nxd4 {[%emt 0:00:11]} Bxd4 {[%emt 0:00:03]} 14. c3 {[%emt 0:00:13]} Bxe3 {[%emt 0:00:03]} 15. fxe3 {[%emt 0:00:04]} b5 {[%emt 0:00:01]} 16. Bxb5 {[%emt 0:00:08]} Qb8 {[%emt 0:00:10]} 17. Bc6 {[%emt 0:00:12]} Qb6 {[%emt 0:00:18]} 18. Bxa8 {[%emt 0:00:13]} Qxe3+ {[%emt 0:00:03]} 19. Kh2 {[%emt 0:00:28]} Rxa8 {[%emt 0:00:09]} 20. Rf3 {[%emt 0:00:25]} Qg5 {[%emt 0:00:17]} 21. Qb3 {[%emt 0:00:34]} Rf8 {[%emt 0:00:19]} 22. Qb7 {[%emt 0:00:37]} Qd2+ {[%emt 0:00:05]} 23. Kg1 {[%emt 0:00:36]} d5 {[%emt 0:00:14]} 24. Qxd5 {[%emt 0:00:44]} Qxb2 {[%emt 0:00:25]} 25. Raf1 {[%emt 0:00:27]} h6 {[%emt 0:00:42]} 26. Qxe5 {[%emt 0:00:18]} Qxa2 {[%emt 0:00:26]} 27. Qxc7 {[%emt 0:00:14]} Qe2 {[%emt 0:00:32]} 28. Qxa7 {[%emt 0:00:51]} h5 {[%emt 0:00:42]} 29. gxh5 {[%emt 0:00:39]} Bxh5 {[%emt 0:00:03]} 30. R3f2 {[%emt 0:00:58]} Qxd3 {[%emt 0:00:15]} 31. Qd4 {[%emt 0:01:35]} Qxh3 {[%emt 0:00:19]} 32. Rg2 {[%emt 0:00:28]} g6 {[%emt 0:00:23]} 33. Rh2 {[%emt 0:00:40]} Qg3+ {[%emt 0:01:02]} 34. Kh1 {[%emt 0:00:00]} Bf3+ {[%emt 0:00:12]} 35. Rxf3 {[%emt 0:00:15]} Qxf3+ {[%emt 0:00:06]} 36. Kg1 {[%emt 0:00:19]} Qg3+ {[%emt 0:00:04]} 37. Rg2 {[%emt 0:00:18]} Qe1+ {[%emt 0:00:04]} 38. Kh2 {[%emt 0:00:19]} Re8 {[%emt 0:00:14]} 39. Rg3 {[%emt 0:00:48]} Rxe4 {[%emt 0:00:15]} 40. Qd8+ {[%emt 0:00:34]} Re8 {[%emt 0:00:19]} 41. Qf6 {[%emt 0:00:29]} Re2+ {[%emt 0:00:04]} 42. Rg2 {[%emt 0:00:24]} Rxg2+ {[%emt 0:00:19]} 43. Kxg2 {[%emt 0:00:05]} Qe4+ {[%emt 0:00:05]} 44. Qf3 {[%emt 0:00:11]} Qxf3+ 45. Kxf3 {[%emt 0:00:01]} Kf8 46. c4 {[%emt 0:00:06]} Ke7 {[%emt 0:00:19]} 47. Ke4 {[%emt 0:00:07]} Kd7 {[%emt 0:00:01]} 48. Kd5 {[%emt 0:00:09]} g5 {[%emt 0:00:06]} 49. c5 {[%emt 0:00:25]} g4 {[%emt 0:00:14]} 50. Ke4 {[%emt 0:00:01]} f5+ {[%emt 0:00:10]} 51. Kf4 {[%emt 0:00:16]} Kc6 {[%emt 0:00:04]} 52. Kg3 {[%emt 0:00:19]} Kxc5 {[%emt 0:00:02]} 53. Kf4 {[%emt 0:00:04]} Kd4 {[%emt 0:00:02]} 54. Kg3 {[%emt 0:00:07]} Ke4 {[%emt 0:00:02]} 55. Kg2 {[%emt 0:00:08]} Kf4 {[%emt 0:00:23]} 56. Kg1 {[%emt 0:00:23]} Kf3 {[%emt 0:00:08]} 57. Kf1 {[%emt 0:00:19]} Kg3 58. Kg1 {[%emt 0:00:04]} f4 {[%emt 0:00:18]} 59. Kf1 {[%emt 0:00:12]} Kh2 {[%emt 0:00:02]} 60. Kf2 {[%emt 0:00:06]} g3+ {[%emt 0:00:02]} 61. Kf3 {[%emt 0:00:01]} g2 {[%emt 0:00:01]} 62. Kxf4 {[%emt 0:00:02]} g1=Q {[%emt 0:00:07]} 63. Ke4 {[%emt 0:00:06]} Qf1 {[%emt 0:00:02]} 64. Ke3 {[%emt 0:00:05]} Kg3 {[%emt 0:00:02]} 65. Kd4 {[%emt 0:00:02]} Qe1 {[%emt 0:00:02]} 66. Kd3 {[%emt 0:00:05]} Kf3 {[%emt 0:00:01]} 67. Kd4 {[%emt 0:00:07]} Qe4+ {[%emt 0:00:01]} 68. Kc5 {[%emt 0:00:03]} Qd3 {[%emt 0:00:02]} 69. Kc6 {[%emt 0:00:04]} Ke4 {[%emt 0:00:07]} 70. Kc7 {[%emt 0:00:07]} Qd5 {[%emt 0:00:00]} 71. Kb6 {[%emt 0:00:02]} Kd4 {[%emt 0:00:00]} 72. Ka6 {[%emt 0:00:09]} Kc4 {[%emt 0:00:00]} 73. Kb6 {[%emt 0:00:07]} Qb5+ {[%emt 0:00:00]} 74. Kc7 {[%emt 0:00:02]} Qa6 {[%emt 0:00:04]} 75. Kd7 {[%emt 0:00:05]} Kd5 {[%emt 0:00:01]} 76. Ke8 {[%emt 0:00:10]} Qa7 {[%emt 0:00:01]} 77. Kf8 {[%emt 0:00:04]} Ke6 {[%emt 0:00:02]} 78. Kg8 {[%emt 0:00:04]} Kf6 {[%emt 0:00:02]} 79. Kh8 {[%emt 0:00:02]} Qg7# {[%emt 0:00:13]} 0-1